bitfinex/quotes_SOLUSD_20260109
["timestamp","ask_amount","ask_price","bid_price","bid_amount"]
[1767948746312,5.81594139,137.44,137.4,7.98874951]
[1767948746517,0.67307417,137.44,137.4,7.27800702]
[1767948746811,6.48901556,137.44,137.4,7.27800702]
[1767948747311,0.67307417,137.44,137.4,7.27800702]
[1767948747613,6.48901556,137.44,137.4,7.98875399]
[1767948748007,0.67307417,137.44,137.4,7.27800702]
[1767948748206,5.81594139,137.43,137.4,7.27800702]
[1767948748401,5.78594139,137.43,137.4,7.27800702]
[1767948749317,5.75594138,137.43,137.39,7.98929708]
[1767948750518,5.81594139,137.43,137.39,7.98929708]
[1767948751612,6.48901556,137.43,137.39,7.27844393]
[1767948751814,6.48901556,137.43,137.39,7.9891909]
[1767948753406,123.63326048,137.49,137.4,0.69908216]
[1767948753407,5.81594139,137.45,137.4,0.69908216]
[1767948753608,0.71538704,137.46,137.41,6.51502355]
[1767948753807,0.71538704,137.46,137.41,0.69908216]
[1767948754022,6.53132843,137.46,137.41,6.51502355]
[1767948754223,5.81594139,137.44,137.41,0.69908216]
[1767948754526,6.53132843,137.45,137.42,7.27696114]
[1767948754760,116.36,137.49,137.42,7.27696114]
[1767948754761,5.81594139,137.46,137.42,7.27696114]
[1767948755021,5.81594139,137.46,137.42,7.9760433]
[1767948755436,5.81594139,137.45,137.42,7.9760433]
[1767948755733,5.81594139,137.46,137.42,7.9760433]
[1767948756300,5.81594139,137.48,137.43,0.69908216]
[1767948756533,19.79132843,137.49,137.44,7.97498437]
[1767948756829,6.53132843,137.5,137.45,6.51502355]
[1767948757000,6.53132843,137.5,137.45,0.69908216]
[1767948757198,6.53132843,137.5,137.45,6.51502355]
[1767948757728,0.71538704,137.5,137.46,0.69908216]
[1767948757917,6.53132843,137.5,137.46,0.69908216]
[1767948758119,5.81594139,137.49,137.46,0.69908216]
[1767948758326,6.53132843,137.49,137.44,45.24068128]
[1767948758522,6.53132843,137.49,137.45,0.69908216]
[1767948758708,0.71538704,137.49,137.45,0.69908216]
[1767948758902,0.71538704,137.49,137.45,6.51502355]
[1767948759311,0.71538704,137.49,137.45,0.69908216]
[1767948760216,6.53132843,137.49,137.44,27.05092576]
[1767948760715,6.53132843,137.49,137.44,21.23498437]
[1767948761113,6.53132843,137.49,137.44,45.24068128]
[1767948761618,6.53132843,137.5,137.45,6.51502355]
[1767948761803,6.53132843,137.5,137.46,0.69908216]
[1767948762007,0.71538704,137.5,137.46,0.69908216]
[1767948762225,0.71538704,137.5,137.46,6.51502355]
[1767948762625,0.71538704,137.51,137.47,7.97320859]
[1767948762808,6.53132843,137.51,137.47,7.97320859]
[1767948763009,0.71538704,137.53,137.49,6.51502355]
[1767948763216,0.71538704,137.55,137.51,0.69908216]
[1767948763631,0.71538704,137.55,137.5,5.81594139]
[1767948763831,5.81594139,137.54,137.51,0.69908216]
[1767948764217,6.53132843,137.55,137.51,0.69908216]
[1767948764621,6.53132843,137.55,137.5,7.27272727]
[1767948765133,5.81594139,137.53,137.49,21.23214886]
[1767948765333,6.53132843,137.54,137.49,21.23214886]
[1767948765826,5.81594139,137.55,137.5,0.69908216]
[1767948766035,6.53132843,137.54,137.5,0.69908216]
[1767948767020,6.53132843,137.54,137.5,7.97176864]
[1767948767218,0.71430982,137.5,137.33,23.1006665]
[1767948767415,0.71430982,137.38,137.26,36.45943027]
[1767948767623,5.81594139,137.37,137.32,5.81594139]
[1767948767830,0.28432314,137.45,137.34,5.81594139]
[1767948767831,5.81594139,137.39,137.34,5.81594139]
[1767948768132,5.81594139,137.39,137.33,13.91486957]
[1767948768133,5.81594139,137.38,137.35,13.26]
[1767948768332,5.81594139,137.38,137.33,0.65486957]
[1767948768333,5.81594139,137.37,137.33,0.65486957]
[1767948768554,0.28432314,137.45,137.34,13.26]
[1767948768715,5.81594139,137.38,137.34,13.26]
[1767948768924,5.81594139,137.37,137.34,13.26]
[1767948770117,0.71430982,137.39,137.34,13.26]
[1767948770322,5.81594139,137.37,137.34,20.54117184]
[1767948770729,5.81594139,137.38,137.34,7.28117184]
[1767948770941,0.71430982,137.44,137.35,13.26]
[1767948771117,5.81594139,137.38,137.35,13.26]
[1767948771818,5.81594139,137.38,137.35,20.54063804]
[1767948772030,6.53025121,137.39,137.35,20.54063804]
[1767948772233,0.71430982,137.39,137.35,20.54063804]
[1767948772437,0.71430982,137.41,137.35,20.54063804]
[1767948772658,5.81594139,137.4,137.35,21.19550761]
[1767948772946,6.53025121,137.41,137.36,0.65486957]
[1767948773126,0.71430982,137.41,137.36,0.65486957]
[1767948773323,6.53025121,137.41,137.37,7.27960981]
[1767948773638,6.53025121,137.41,137.38,13.26]
[1767948773844,0.71430982,137.41,137.38,13.26]
[1767948774045,6.53025121,137.41,137.38,13.26]
[1767948774241,0.71430982,137.41,137.38,13.26]
[1767948774723,0.71430982,137.43,137.37,7.27960981]
[1767948774929,6.53025121,137.41,137.38,13.26]
[1767948775134,0.71430982,137.41,137.38,13.26]
[1767948775936,6.53025121,137.43,137.38,20.53898122]
[1767948776119,5.81594139,137.42,137.38,20.53898122]
[1767948776453,6.53025121,137.42,137.38,20.53898122]
[1767948778732,0.71430982,137.48,137.39,0.65486957]
[1767948778933,6.53025121,137.47,137.42,5.81594139]
[1767948779126,6.53025121,137.47,137.43,13.26]
[1767948779655,5.96448969,137.55,137.38,32.15679173]
[1767948779656,6.53025121,137.44,137.42,13.26]
[1767948779840,5.81594139,137.43,137.42,13.26]
[1767948780347,0.71430982,137.43,137.38,7.93385079]
[1767948780543,6.43025121,137.45,137.4,13.91486957]
[1767948780739,5.81594139,137.43,137.39,0.65486957]
[1767948780953,5.81594139,137.41,137.37,7.93443211]
[1767948781146,6.42004756,137.41,137.38,13.26]
[1767948781348,103.1,137.47,137.38,13.26]
[1767948781562,107.86993645,137.46,137.38,0.65486957]
[1767948781764,103.1,137.46,137.38,19.73081096]
[1767948781963,5.92004295,137.42,137.37,7.27956254]
[1767948782165,5.81594139,137.43,137.39,13.26]
[1767948782456,0.099,137.44,137.39,13.26]
[1767948782764,5.81594139,137.43,137.39,20.53850842]
[1767948783351,5.81594139,137.42,137.39,13.26]
[1767948784057,5.81594139,137.42,137.38,0.65486957]
[1767948784256,0.099,137.44,137.38,13.91486957]
[1767948784461,5.81594139,137.42,137.38,13.91486957]
[1767948785376,0.10910161,137.4,137.34,0.65733362]
[1767948785537,0.10910161,137.4,137.33,0.28432314]
[1767948785538,0.10910161,137.4,137.3,0.65733362]
[1767948785539,5.81594139,137.35,137.3,0.65733362]
[1767948785740,5.81594139,137.34,137.3,0.65733362]
[1767948786158,5.81594139,137.34,137.3,7.94061778]
[1767948786359,5.92994355,137.37,137.31,19.73327501]
[1767948786563,5.81594139,137.36,137.32,0.65733362]
[1767948786738,5.81594139,137.35,137.32,13.91733362]
[1767948787260,5.81594139,137.36,137.32,13.91733362]
[1767948787965,5.81594139,137.34,137.31,13.26]
[1767948788135,0.60410617,137.35,137.31,13.26]
[1767948788136,5.81594139,137.33,137.31,13.26]
[1767948788561,5.81594139,137.33,137.29,7.28368028]
[1767948788761,5.81594139,137.33,137.29,13.26]
[1767948789144,0.61430982,137.36,137.29,21.20072665]
[1767948789350,5.81594139,137.35,137.3,7.94022474]
[1767948789951,5.81594139,137.35,137.31,7.28275936]
[1767948790152,5.91494139,137.35,137.3,0.65733362]
[1767948790372,6.42509811,137.34,137.29,0.65733362]
[1767948790867,0.60915672,137.34,137.29,21.20104159]
[1767948791056,0.61430982,137.36,137.3,5.81594139]
[1767948791258,103.71430982,137.4,137.33,0.65733362]
[1767948791457,5.81594139,137.38,137.34,0.65733362]
[1767948791659,0.61430982,137.4,137.34,0.65733362]
[1767948791851,5.81594139,137.39,137.34,0.65733362]
[1767948792053,0.61430982,137.4,137.34,0.65733362]
[1767948792260,5.81594139,137.4,137.35,6.47327501]
[1767948792457,5.81594139,137.38,137.35,0.65733362]
[1767948792642,9.4597376,137.38,137.35,0.65733362]
[1767948793358,0.099,137.41,137.35,0.65733362]
[1767948793557,0.099,137.41,137.35,7.9378525]
[1767948793768,9.4597376,137.4,137.35,17.3975901]
[1767948793952,9.4597376,137.4,137.36,0.65733362]
[1767948794565,0.099,137.41,137.36,0.65733362]
[1767948794767,9.4597376,137.4,137.36,0.65733362]
[1767948795051,0.099,137.41,137.36,0.65733362]
[1767948795254,9.4597376,137.39,137.36,0.65733362]
[1767948795472,0.099,137.41,137.36,0.65733362]
[1767948795776,9.4597376,137.39,137.36,0.65733362]
[1767948796146,9.4597376,137.4,137.36,0.65733362]
[1767948796568,0.099,137.41,137.36,0.65733362]
[1767948796758,9.4597376,137.4,137.36,7.93740937]
[1767948797155,20.555038,137.46,137.38,0.65733362]
[1767948797156,10.07404742,137.43,137.38,0.65733362]
[1767948797366,10.07404742,137.43,137.38,13.93733362]
[1767948797569,0.61430982,137.43,137.38,13.93733362]
[1767948797748,9.4597376,137.42,137.38,13.93733362]
[1767948798149,9.4597376,137.41,137.38,13.28]
[1767948798373,20.55488743,137.46,137.34,0.65733362]
[1767948798374,9.4597376,137.39,137.34,0.65733362]
[1767948798602,0.61430982,137.44,137.37,0.65733362]
[1767948798756,9.5587376,137.43,137.38,0.65733362]
[1767948798960,9.4597376,137.42,137.38,0.59733367]
[1767948799168,0.099,137.43,137.38,0.59733367]
[1767948799372,0.66855667,137.42,137.34,13.28]
[1767948799550,9.4597376,137.41,137.33,18.48821049]
[1767948799750,0.66855667,137.42,137.35,9.4597376]
[1767948799947,0.66855667,137.42,137.36,9.4597376]
[1767948800148,9.4597376,137.41,137.36,22.7197376]
[1767948800360,10.12829427,137.42,137.36,22.7197376]
[1767948800554,9.4597376,137.42,137.37,16.73925565]
[1767948800751,9.4597376,137.41,137.37,7.27951805]
[1767948800955,9.4597376,137.41,137.36,30.65700222]
[1767948801174,9.4597376,137.41,137.37,7.27950113]
[1767948802176,0.66855667,137.42,137.37,16.73923873]
[1767948802480,10.12829427,137.42,137.37,17.39657235]
[1767948802666,9.4597376,137.42,137.38,0.65733362]
[1767948803479,0.099,137.43,137.38,0.65733362]
[1767948803678,9.4597376,137.42,137.38,0.65733362]
[1767948804763,0.67430977,137.47,137.41,10.11707122]
[1767948804973,9.4597376,137.46,137.41,10.05707125]
[1767948805178,0.67430977,137.47,137.41,0.59733365]
[1767948805380,0.67430977,137.47,137.41,10.05707125]
[1767948805691,103.78655154,137.49,137.39,0.28432314]
[1767948805865,9.60601821,137.48,137.43,9.4597376]
[1767948806179,0.14628061,137.48,137.44,9.4597376]
[1767948806385,0.14628061,137.48,137.43,22.7197376]
[1767948806587,0.68655154,137.52,137.46,9.4597376]
[1767948806879,103.1,137.54,137.48,10.11707122]
[1767948806880,103.24628061,137.54,137.48,10.11707122]
[1767948807070,103.24628061,137.54,137.47,13.26]
[1767948807071,46.87717651,137.6,137.49,9.4597376]
[1767948807257,9.4597376,137.55,137.5,9.4597376]
[1767948807464,0.78655154,137.56,137.47,13.26]
[1767948807771,0.78655154,137.56,137.5,9.4597376]
[1767948807976,0.1,137.56,137.5,13.26]
[1767948808172,0.1,137.56,137.51,9.4597376]
[1767948808365,0.1,137.56,137.52,9.4597376]
[1767948808766,0.1,137.56,137.52,22.7197376]
[1767948808961,0.68655154,137.6,137.55,10.11707122]
[1767948809176,0.68655154,137.6,137.55,10.05707122]
[1767948809177,10.14628914,137.6,137.55,10.05707122]
[1767948809385,0.68655154,137.62,137.55,10.05707122]
[1767948809589,9.4597376,137.61,137.56,9.4597376]
[1767948809777,0.68655154,137.62,137.56,9.4597376]
[1767948810082,9.4597376,137.61,137.56,9.4597376]
[1767948810283,9.4597376,137.6,137.56,13.26]
[1767948810502,9.83013952,137.57,137.46,36.3739906]
[1767948810661,9.4597376,137.55,137.5,16.73241417]
[1767948810861,0.67706865,137.56,137.5,16.73241417]
[1767948811108,0.68655154,137.58,137.51,10.11707122]
[1767948811273,9.4597376,137.56,137.51,10.11707122]
[1767948811479,0.68655154,137.58,137.51,10.11707122]
[1767948811775,9.4597376,137.55,137.51,0.65733362]
[1767948812156,0.68332683,137.56,137.51,9.4597376]
[1767948812361,0.68332683,137.56,137.51,10.11707122]
[1767948812561,9.4597376,137.56,137.52,0.65733362]
[1767948812781,9.4597376,137.56,137.51,17.44800903]
[1767948813281,9.4597376,137.55,137.51,0.71611506]
[1767948813882,9.4597376,137.55,137.5,13.26]
[1767948814185,10.14306443,137.56,137.5,30.70856345]
[1767948814363,10.14306443,137.56,137.51,9.4597376]
[1767948814572,0.71661866,137.58,137.53,9.4597376]
[1767948814761,0.33431408,137.57,137.53,9.4597376]
[1767948814965,9.79405168,137.57,137.52,17.44740922]
[1767948815198,9.4597376,137.56,137.52,0.71611506]
[1767948815577,0.33431408,137.57,137.52,10.17585266]
[1767948815578,9.79405168,137.57,137.52,10.17585266]
[1767948815775,0.33431408,137.57,137.52,10.17585266]
[1767948816079,9.79405168,137.57,137.52,17.44751865]
[1767948816488,9.4597376,137.56,137.5,7.98870218]
[1767948816687,0.71661866,137.57,137.52,10.17585266]
[1767948816886,10.17635626,137.59,137.54,10.17585266]
[1767948817066,0.68981323,137.59,137.54,10.17585266]
[1767948818191,0.68981323,137.59,137.54,0.71611506]
[1767948818375,9.4597376,137.58,137.54,0.71611506]
[1767948818701,10.14955083,137.59,137.54,10.17585266]
[1767948819187,0.68981323,137.59,137.54,17.44635372]
[1767948819494,10.14955083,137.59,137.54,17.44635372]
[1767948819691,0.68981323,137.59,137.55,9.4597376]
[1767948819898,10.17635626,137.61,137.55,9.4597376]
[1767948820272,0.71661866,137.61,137.55,9.4597376]
[1767948820477,10.17635626,137.61,137.55,9.4597376]
[1767948820689,0.3077767,137.6,137.52,0.71611506]
[1767948820876,9.4597376,137.56,137.52,0.71611506]
[1767948821111,9.4597376,137.57,137.52,10.17585266]
[1767948821483,0.31182424,137.58,137.52,10.17585266]
[1767948821686,9.4597376,137.57,137.52,10.17585266]
[1767948822409,9.4597376,137.57,137.52,17.44735534]
[1767948824187,0.31182424,137.58,137.52,17.44735534]
[1767948824395,9.4597376,137.57,137.52,17.44735534]
[1767948824590,0.31182424,137.58,137.52,17.44735534]
[1767948824902,9.77156184,137.58,137.53,10.17585266]
[1767948825300,0.31182424,137.58,137.53,10.17585266]
[1767948825605,9.77156184,137.58,137.53,10.17585266]
[1767948826177,9.77156184,137.58,137.53,0.71611506]
[1767948826388,10.16826078,137.57,137.52,9.4597376]
[1767948826708,0.70852318,137.57,137.53,9.4597376]
[1767948826885,103.1,137.6,137.54,10.17672467]
[1767948826886,0.65947461,137.59,137.54,10.17672467]
[1767948827205,10.11921221,137.59,137.54,10.17672467]
[1767948827510,0.5,137.58,137.54,10.17672467]
[1767948827804,0.5,137.58,137.5,0.71698707]
[1767948827805,10.11336843,137.55,137.5,0.71698707]
[1767948827980,0.65363083,137.55,137.5,7.98932494]
[1767948828177,10.11336843,137.55,137.5,17.44906254]
[1767948828378,0.65363083,137.55,137.51,7.98877909]
[1767948828579,0.65363083,137.55,137.51,17.44851669]
[1767948829196,10.11921221,137.57,137.52,10.17672467]
[1767948830192,9.82408691,137.56,137.52,0.71698707]
[1767948830391,9.4597376,137.57,137.53,0.71698707]
[1767948830585,10.11336843,137.55,137.51,0.71698707]
[1767948831094,10.11336843,137.55,137.51,7.98911695]
[1767948831294,0.65947461,137.59,137.54,9.4597376]
[1767948831484,9.82408691,137.58,137.53,10.17672467]
[1767948831685,9.4597376,137.56,137.52,0.71698707]
[1767948831911,10.11626096,137.57,137.52,10.17672467]
[1767948832305,0.65652336,137.57,137.52,10.17672467]
[1767948832501,10.11626096,137.57,137.52,10.17672467]
[1767948833006,13.26,137.6,137.49,18.18238113]
[1767948833007,9.82700865,137.56,137.5,7.9894926]
[1767948833204,9.4597376,137.55,137.5,7.9894926]
[1767948833409,9.4597376,137.54,137.5,7.9894926]
[1767948833585,10.11336843,137.55,137.5,17.4492302]
[1767948834298,0.65363083,137.55,137.51,10.17672467]
[1767948834690,0.65363083,137.55,137.51,17.4488579]
[1767948834888,10.11336843,137.55,137.51,0.71698707]
[1767948835292,0.65363083,137.55,137.51,0.71698707]
[1767948835508,0.65363083,137.55,137.51,7.98916833]
[1767948835706,10.11336843,137.55,137.51,0.71698707]
[1767948836212,0.65947461,137.57,137.51,0.71698707]
[1767948836514,10.11921221,137.57,137.52,0.71698707]
[1767948836714,10.11921221,137.57,137.52,10.17672467]
[1767948836890,0.65947461,137.57,137.52,0.71698707]
[1767948837090,9.4597376,137.56,137.52,0.71698707]
[1767948837907,10.11626096,137.55,137.5,7.98947211]
[1767948838117,10.11626096,137.55,137.5,17.44920971]
[1767948838319,10.11626096,137.55,137.5,10.17672467]
[1767948838623,10.11053347,137.51,137.46,0.71698707]
[1767948838794,0.65079587,137.51,137.46,0.71698707]
[1767948838993,10.11053347,137.51,137.46,0.71698707]
[1767948839324,10.11053347,137.51,137.46,10.17672467]
[1767948839623,10.11053347,137.51,137.46,0.71698707]
[1767948839920,0.65079587,137.51,137.46,17.45154035]
[1767948840222,0.65947461,137.53,137.47,10.17672467]
[1767948840417,0.65947461,137.53,137.48,10.17672467]
[1767948840928,10.11921221,137.53,137.48,10.17672467]
[1767948841501,10.11921221,137.53,137.48,0.71698707]
[1767948841705,9.4597376,137.5,137.46,0.71698707]
[1767948841902,10.11921221,137.49,137.44,10.17672467]
[1767948842225,9.4597376,137.45,137.4,7.99470241]
[1767948842412,9.4597376,137.46,137.42,0.71698707]
[1767948842812,0.65947461,137.48,137.42,0.71698707]
[1767948843015,9.4597376,137.46,137.42,0.71698707]
[1767948843215,9.4597376,137.45,137.42,0.71698707]
[1767948843537,9.4597376,137.45,137.42,7.99391585]
[1767948843900,9.4597376,137.46,137.42,7.99391585]
[1767948844302,0.36434931,137.47,137.42,7.99391585]
[1767948844505,9.4597376,137.46,137.42,7.99391585]
[1767948844723,9.82408691,137.47,137.42,17.45365345]
[1767948844906,0.6671196,137.49,137.43,10.16876151]
[1767948845240,9.4597376,137.46,137.41,0.70902391]
[1767948845538,9.4597376,137.46,137.41,10.16876151]
[1767948846104,9.4597376,137.45,137.41,0.70902391]
[1767948846301,0.66401621,137.46,137.41,0.70902391]
[1767948846513,9.4597376,137.45,137.41,0.70902391]
[1767948847530,0.66401621,137.46,137.41,17.44619613]
[1767948847724,10.12375381,137.46,137.41,17.44619613]
[1767948848231,9.4597376,137.45,137.41,17.44624063]
[1767948848529,10.12375381,137.46,137.41,10.16876151]
[1767948848735,9.4597376,137.45,137.41,0.70902391]
[1767948849509,9.4597376,137.44,137.4,0.70902391]
[1767948849732,10.12071218,137.44,137.4,0.70902391]
[1767948852012,9.82260194,137.43,137.39,0.2]
[1767948852229,9.4597376,137.42,137.39,0.2]
[1767948852436,0.36581563,137.41,137.35,0.14216157]
[1767948852633,103.1,137.48,137.32,0.70902391]
[1767948852634,9.4597376,137.36,137.32,0.70902391]
[1767948852839,9.4597376,137.36,137.29,7.28372243]
[1767948852840,9.4597376,137.35,137.3,0.70902391]
[1767948853131,0.66203621,137.36,137.3,10.16876151]
[1767948853309,0.66203621,137.36,137.31,0.70902391]
[1767948853517,0.66203621,137.36,137.31,10.16876151]
[1767948853840,10.12177381,137.36,137.31,10.16876151]
[1767948854026,9.4597376,137.34,137.31,0.70902391]
[1767948854216,10.12177381,137.36,137.31,10.16876151]
[1767948854533,5.82427581,137.35,137.31,0.70902391]
[1767948854835,6.48631202,137.36,137.31,0.70902391]
[1767948855022,0.66203621,137.36,137.31,13.81583175]
[1767948855221,5.82427581,137.37,137.32,6.53329972]
[1767948855426,6.49139541,137.38,137.33,6.53329972]
[1767948855930,5.82427581,137.37,137.33,0.70902391]
[1767948856138,19.08427581,137.39,137.34,6.53329972]
[1767948856432,5.82427581,137.41,137.36,6.53329972]
[1767948856632,0.6671196,137.42,137.36,6.53329972]
[1767948857115,6.49139541,137.42,137.37,6.53329972]
[1767948857529,6.49139541,137.42,137.37,13.81282591]
[1767948858161,5.82427581,137.43,137.38,6.53329972]
[1767948858319,19.75139541,137.44,137.39,6.53329972]
[1767948858519,13.9271196,137.44,137.39,6.53329972]
[1767948859021,19.75139541,137.44,137.39,6.53329972]
[1767948859220,5.82427581,137.45,137.4,6.53329972]
[1767948859813,0.6671196,137.46,137.4,6.53329972]
[1767948860016,5.82427581,137.45,137.4,6.53329972]
[1767948860715,0.15878077,137.45,137.4,0.70902391]
[1767948860914,5.82427581,137.43,137.38,6.53329972]
[1767948861335,5.82427581,137.43,137.39,0.70902391]
[1767948861638,5.82427581,137.42,137.37,6.53329972]
[1767948861813,0.16381332,137.43,137.37,6.53329972]
[1767948862013,5.82427581,137.42,137.37,6.53329972]
[1767948862214,0.65705399,137.42,137.37,0.70902391]
[1767948862419,6.4813298,137.42,137.37,6.53329972]
[1767948862829,5.82427581,137.41,137.37,0.70902391]
[1767948863027,6.4813298,137.42,137.37,0.70902391]
[1767948863229,6.4813298,137.42,137.37,6.53329972]
[1767948863848,5.82427581,137.41,137.37,0.70902391]
[1767948864035,5.82427581,137.41,137.36,5.82427581]
[1767948864231,0.65705399,137.42,137.36,6.53329972]
[1767948864429,5.82427581,137.4,137.36,0.70902391]
[1767948865047,0.66874572,137.41,137.36,0.70902391]
[1767948865342,5.82427581,137.4,137.36,0.70902391]
[1767948865856,6.47166081,137.38,137.33,0.70902391]
[1767948866182,5.82427581,137.38,137.33,0.70902391]
[1767948866330,0.6671196,137.4,137.33,0.70902391]
[1767948866646,5.82427581,137.38,137.34,0.70902391]
[1767948866946,5.82427581,137.37,137.34,0.70902391]
[1767948867146,5.82427581,137.37,137.31,7.99161901]
[1767948867331,5.82427581,137.36,137.32,0.70902391]
[1767948867532,5.79427582,137.36,137.32,0.70902391]
[1767948867730,0.16381332,137.37,137.32,0.70902391]
[1767948867933,5.82427581,137.36,137.32,0.70902391]
[1767948868330,0.16381332,137.37,137.32,0.70902391]
[1767948868640,5.82427581,137.36,137.32,0.70902391]
[1767948869552,5.82427581,137.37,137.33,0.70902391]
[1767948869761,0.6671196,137.39,137.34,0.70902391]
[1767948870047,6.49139541,137.39,137.34,0.70902391]
[1767948870250,0.6671196,137.39,137.34,0.70902391]
[1767948870440,5.98305658,137.38,137.32,13.8150429]
[1767948870639,0.15878077,137.38,137.33,0.70902391]
[1767948870941,5.82427581,137.39,137.35,0.70902391]
[1767948872353,5.82427581,137.39,137.35,7.98961287]
[1767948873833,0.7081744,137.35,137.23,0.69243244]
[1767948874031,0.28432314,137.32,137.21,0.69243244]
[1767948874240,23.49675403,137.34,137.21,0.69243244]
[1767948874241,0.28432314,137.3,137.22,14.30572358]
[1767948874537,13.28,137.31,137.22,20.12999939]
[1767948874743,5.82427581,137.28,137.22,5.82427581]
[1767948875465,5.82427581,137.25,137.19,7.28868766]
[1767948875675,5.82427581,137.24,137.19,7.28868766]
[1767948875968,5.82427581,137.24,137.19,20.56868766]
[1767948876181,5.82427581,137.25,137.19,26.39296347]
[1767948876632,5.82427581,137.25,137.2,0.69243244]
[1767948876829,5.82427581,137.24,137.2,0.69243244]
[1767948877979,5.82427581,137.21,137.18,0.69243244]
[1767948878180,5.82427581,137.2,137.18,0.69243244]
[1767948878357,0.71419458,137.23,137.18,0.69243244]
[1767948878557,5.82427581,137.21,137.18,0.69243244]
[1767948878783,0.71419458,137.23,137.18,0.69243244]
[1767948878985,5.82427581,137.21,137.18,0.69243244]
[1767948879295,5.82427581,137.21,137.02,5.70622795]
[1767948879296,0.71419458,137.14,137.02,5.70622795]
[1767948879459,0.28432314,137.15,137.02,5.70622795]
[1767948879460,5.82427581,137.07,137.02,5.70622795]
[1767948879654,0.61419458,137.11,137.03,5.82427581]
[1767948879854,0.71419458,137.13,137.04,5.82427581]
[1767948880079,5.82427581,137.11,137.05,13.12088288]
[1767948880259,5.82427581,137.11,137.06,13.28]
[1767948880459,5.82427581,137.1,137.06,13.28]
[1767948881072,5.82427581,137.11,137.07,0.69243244]
[1767948881258,5.82427581,137.11,137.08,0.69243244]
[1767948881259,4.98847039,137.11,137.08,0.69243244]
[1767948881576,5.82427581,137.12,137.07,13.28]
[1767948881968,5.82427581,137.1,136.99,36.49781354]
[1767948882164,5.82427581,137.09,137.03,5.82427581]
[1767948882584,0.71419458,137.11,137.04,13.28]
[1767948882781,5.82427581,137.1,137.04,19.10427581]
[1767948883090,5.82427581,137.1,137.04,26.40137288]
[1767948883284,0.71419458,137.1,137.01,13.82963112]
[1767948883587,5.82427581,137.02,136.92,13.28]
[1767948883788,5.82427581,137.01,136.93,13.28]
[1767948884090,5.82427581,137.01,136.95,5.82427581]
[1767948884379,5.82427581,137.03,136.93,13.28]
[1767948884583,0.71419458,137.04,136.93,13.28]
[1767948884584,6.53847039,137.04,136.98,5.82427581]
[1767948884880,0.71419458,137.07,137.0,5.82427581]
[1767948885063,5.82427581,137.07,137.01,5.82427581]
[1767948885258,5.82427581,137.07,137.02,13.28]
[1767948885860,0.71419458,137.08,137.02,19.10427581]
[1767948886065,5.82427581,137.1,137.05,5.82427581]
[1767948886270,6.53847039,137.11,137.06,13.28]
[1767948886987,0.71419458,137.11,137.06,19.10427581]
[1767948887283,6.53847039,137.11,137.06,19.10427581]
[1767948887483,6.53847039,137.11,137.03,0.28432314]
[1767948887661,5.82427581,137.08,137.04,13.28]
[1767948887986,6.54650242,137.08,137.04,13.28]
[1767948888278,6.54650242,137.08,137.0,7.44140292]
[1767948888279,6.54650242,137.07,137.01,5.82427581]
[1767948888469,6.54650242,137.07,137.02,13.3]
[1767948888669,6.54650242,137.07,137.02,19.12427581]
[1767948888871,0.72222661,137.07,137.02,19.12427581]
[1767948889279,5.82427581,137.08,137.02,19.12427581]
[1767948889673,6.54650242,137.09,137.03,5.82427581]
[1767948890581,0.72222661,137.09,137.04,5.82427581]
[1767948890788,6.54650242,137.09,137.03,5.82427581]
[1767948891095,6.54650242,137.09,137.04,5.82427581]
[1767948891296,0.72222661,137.09,137.05,19.12427581]
[1767948891469,0.72222661,137.11,137.06,5.82427581]
[1767948891862,0.72222661,137.11,137.07,5.82427581]
[1767948892276,6.54650242,137.13,137.07,5.82427581]
[1767948892664,6.54650242,137.13,137.09,5.82427581]
[1767948892665,0.72222661,137.13,137.09,5.82427581]
[1767948892876,0.72222661,137.13,137.1,19.12427581]
[1767948893382,5.82427581,137.16,137.1,19.12427581]
[1767948893383,0.72222661,137.15,137.1,19.12427581]
[1767948894371,6.54650242,137.17,137.11,5.82427581]
[1767948894571,6.54650242,137.17,137.08,18.23648137]
[1767948894794,0.72222661,137.17,137.11,5.82427581]
[1767948895007,0.72222661,137.17,137.11,7.29337996]
[1767948895191,5.82427581,137.16,137.12,13.3]
[1767948895374,6.54650242,137.15,137.13,13.3]
[1767948895882,0.72222661,137.15,137.13,13.3]
[1767948896293,0.72222661,137.15,137.08,7.29457203]
[1767948896489,0.72222661,137.15,137.1,5.82427581]
[1767948896690,0.72222661,137.14,137.11,13.3]
[1767948897194,6.54650242,137.14,137.11,13.3]
[1767948897369,6.54650242,137.14,137.08,5.82427581]
[1767948897566,0.72222661,137.12,137.06,7.29594192]
[1767948897793,6.54650242,137.12,137.06,5.82427581]
[1767948897973,0.72222661,137.12,137.07,19.12427581]
[1767948898178,0.72222661,137.12,137.08,5.82427581]
[1767948898473,6.54650242,137.14,137.09,5.82427581]
[1767948898673,6.54650242,137.14,137.08,5.82427581]
[1767948898874,0.72222661,137.13,137.07,20.59518155]
[1767948899083,0.72222661,137.13,137.08,5.82427581]
[1767948899282,0.72222661,137.13,137.07,20.59518155]